[Event "Early-Titled-Tuesday-Blitz-January-30-2024"]
[Site "Chess.com"]
[Date "2024.01.30"]
[Round "8"]
[White "Alexander_Donchenko"]
[Black "PavelShkapenko"]
[Result "1-0"]
[WhiteElo "2942"]
[BlackElo "2763"]
[TimeControl "180+1"]
[EndTime "9:31:16 PST"]
[Termination "Alexander_Donchenko won by resignation"]

1. Nf3 {[%clk 0:03:00.9]} 1... d5 {[%clk 0:02:58.5]} 2. g3 {[%clk 0:03:01.4]}
2... Nd7 {[%clk 0:02:58.6]} 3. d4 {[%clk 0:03:00.9]} 3... Nb6 {[%clk 0:02:58.5]}
4. Bg2 {[%clk 0:03:01.6]} 4... h6 {[%clk 0:02:55.6]} 5. O-O {[%clk 0:03:02.1]}
5... Bf5 {[%clk 0:02:55.7]} 6. b3 {[%clk 0:03:02.6]} 6... e6 {[%clk 0:02:55.8]}
7. c4 {[%clk 0:03:02.9]} 7... c6 {[%clk 0:02:56.4]} 8. a4 {[%clk 0:03:02.3]}
8... a5 {[%clk 0:02:49.5]} 9. Nbd2 {[%clk 0:03:01.8]} 9... Nf6 {[%clk 0:02:49]}
10. Ne5 {[%clk 0:03:02.1]} 10... Nbd7 {[%clk 0:02:48.2]} 11. Nd3 {[%clk
0:02:55.7]} 11... Be7 {[%clk 0:02:47.2]} 12. Bb2 {[%clk 0:02:53]} 12... O-O
{[%clk 0:02:45.8]} 13. Re1 {[%clk 0:02:53.4]} 13... Bh7 {[%clk 0:02:04]} 14. e4
{[%clk 0:02:42.7]} 14... Qb6 {[%clk 0:02:03.7]} 15. Re3 {[%clk 0:02:16.1]} 15...
dxe4 {[%clk 0:01:57.3]} 16. Nxe4 {[%clk 0:02:16.4]} 16... Nxe4 {[%clk
0:01:57.6]} 17. Bxe4 {[%clk 0:02:17.3]} 17... Bxe4 {[%clk 0:01:57.5]} 18. Rxe4
{[%clk 0:02:18.2]} 18... Bf6 {[%clk 0:01:57.2]} 19. Qc2 {[%clk 0:02:10.9]} 19...
Rfd8 {[%clk 0:01:56]} 20. Rd1 {[%clk 0:02:09.8]} 20... Nf8 {[%clk 0:01:54.2]}
21. Ne5 {[%clk 0:02:05]} 21... Nd7 {[%clk 0:01:46.3]} 22. Ng4 {[%clk 0:01:58.7]}
22... Be7 {[%clk 0:01:46.5]} 23. Ree1 {[%clk 0:01:50]} 23... Nf6 {[%clk
0:01:40.1]} 24. Ne5 {[%clk 0:01:49.7]} 24... c5 {[%clk 0:01:29.2]} 25. d5 {[%clk
0:01:36.6]} 25... exd5 {[%clk 0:01:25.6]} 26. cxd5 {[%clk 0:01:35.7]} 26... Nxd5
{[%clk 0:01:22.3]} 27. Nxf7 {[%clk 0:01:24.9]} 27... Kxf7 {[%clk 0:01:18.5]} 28.
Qe4 {[%clk 0:00:31]} 28... Bf6 {[%clk 0:01:04]} 29. Rxd5 {[%clk 0:00:23.4]}
29... Bxb2 {[%clk 0:00:55.8]} 30. Qe7+ {[%clk 0:00:23.2]} 30... Kg8 {[%clk
0:00:54.7]} 31. Re6 {[%clk 0:00:24.1]} 31... Re8 {[%clk 0:00:20.4]} 32. Qxe8+
{[%clk 0:00:22.1]} 32... Rxe8 {[%clk 0:00:21.3]} 33. Rxb6 {[%clk 0:00:22.7]}
33... Bd4 {[%clk 0:00:19.9]} 34. Rxb7 {[%clk 0:00:21.4]} 34... Rf8 {[%clk
0:00:19.3]} 35. Rdd7 {[%clk 0:00:16.2]} 35... Bxf2+ {[%clk 0:00:16.4]} 36. Kg2
{[%clk 0:00:16.7]} 36... Bd4 {[%clk 0:00:17.1]} 37. Rb5 {[%clk 0:00:14.5]} 37...
Rf2+ {[%clk 0:00:16.8]} 38. Kh3 {[%clk 0:00:15]} 38... Rb2 {[%clk 0:00:16.8]}
39. Rxa5 {[%clk 0:00:11.5]} 39... Rxb3 {[%clk 0:00:16.4]} 40. Ra8+ {[%clk
0:00:10.1]} 40... Kh7 {[%clk 0:00:16.2]} 41. a5 {[%clk 0:00:11]} 41... h5 {[%clk
0:00:15.5]} 42. a6 {[%clk 0:00:11.1]} 42... Rb2 {[%clk 0:00:15.5]} 43. a7 {[%clk
0:00:09.6]} 43... Bg1 {[%clk 0:00:14.3]} 44. Rh8+ {[%clk 0:00:09.5]} 44... Kg6
{[%clk 0:00:14.6]} 45. Rd6+ {[%clk 0:00:09]} 45... Kg5 {[%clk 0:00:14.7]} 46.
Rd5+ {[%clk 0:00:07.2]} 46... Kg6 {[%clk 0:00:15.1]} 47. Rdxh5 {[%clk
0:00:04.6]} 47... Ra2 {[%clk 0:00:12.6]} 48. a8=Q {[%clk 0:00:03.4]} 48... Rxa8
{[%clk 0:00:12.8]} 49. Rxa8 {[%clk 0:00:04.3]} 49... Kxh5 {[%clk 0:00:13.3]} 50.
Ra6 {[%clk 0:00:03.3]} 50... Kg5 {[%clk 0:00:12.6]} 51. Rc6 {[%clk 0:00:03.3]}
51... Kf5 {[%clk 0:00:11.7]} 52. Kg2 {[%clk 0:00:03.7]} 52... Bd4 {[%clk
0:00:11.2]} 53. Kf3 {[%clk 0:00:04.1]} 53... g5 {[%clk 0:00:11.6]} 54. g4+
{[%clk 0:00:03.8]} 54... Ke5 {[%clk 0:00:11.8]} 55. Rg6 {[%clk 0:00:04.4]} 55...
Kd5 {[%clk 0:00:07.4]} 56. Rxg5+ {[%clk 0:00:05]} 56... Kc4 {[%clk 0:00:08.3]}
57. h4 {[%clk 0:00:04.9]} 57... Kd3 {[%clk 0:00:08.4]} 58. h5 {[%clk 0:00:04.1]}
58... c4 {[%clk 0:00:09]} 59. Rg8 {[%clk 0:00:02.9]} 59... c3 {[%clk 0:00:09.4]}
60. Rc8 {[%clk 0:00:03.5]} 60... c2 {[%clk 0:00:09.8]} 61. Rxc2 {[%clk
0:00:03.8]} 61... Kxc2 {[%clk 0:00:09.9]} 62. Ke4 {[%clk 0:00:04.4]} 62... Bb2
{[%clk 0:00:07.7]} 63. g5 {[%clk 0:00:04.5]} 63... Kb3 {[%clk 0:00:07.6]} 64. g6
{[%clk 0:00:03.6]} 64... Bg7 {[%clk 0:00:06.6]} 65. Kf5 {[%clk 0:00:04.1]} 65...
Kc4 {[%clk 0:00:06.7]} 66. Kg5 {[%clk 0:00:04.7]} 66... Kd5 {[%clk 0:00:06.6]}
67. h6 {[%clk 0:00:05.3]} 67... Be5 {[%clk 0:00:06.5]} 68. g7 {[%clk 0:00:05.8]}
1-0

[Event "Early-Titled-Tuesday-Blitz-January-30-2024"]
[Site "Chess.com"]
[Date "2024.01.30"]
[Round "8"]
[White "wonderfultime"]
[Black "Matibar"]
[Result "1-0"]
[WhiteElo "3009"]
[BlackElo "2818"]
[TimeControl "180+1"]
[EndTime "9:31:17 PST"]
[Termination "wonderfultime won on time"]

1. d4 {[%clk 0:03:00.9]} 1... d6 {[%clk 0:03:00.3]} 2. e4 {[%clk 0:03:00.9]}
2... Nf6 {[%clk 0:03:00.1]} 3. Nc3 {[%clk 0:03:01.3]} 3... e5 {[%clk 0:02:59.5]}
4. Nf3 {[%clk 0:03:01.8]} 4... Nbd7 {[%clk 0:02:59.3]} 5. Bc4 {[%clk 0:03:02.1]}
5... Be7 {[%clk 0:02:59.6]} 6. O-O {[%clk 0:03:02.5]} 6... O-O {[%clk
0:02:59.7]} 7. Re1 {[%clk 0:03:03.3]} 7... exd4 {[%clk 0:02:56.1]} 8. Nxd4
{[%clk 0:03:02.8]} 8... Ne5 {[%clk 0:02:56.3]} 9. Bf1 {[%clk 0:02:53.4]} 9...
Re8 {[%clk 0:02:55.6]} 10. h3 {[%clk 0:02:49]} 10... Bf8 {[%clk 0:02:52.9]} 11.
Bf4 {[%clk 0:02:44.5]} 11... c6 {[%clk 0:02:46.7]} 12. a4 {[%clk 0:02:34.1]}
12... Ng6 {[%clk 0:02:34.1]} 13. Bg3 {[%clk 0:02:29.7]} 13... d5 {[%clk
0:02:33.8]} 14. exd5 {[%clk 0:02:18.5]} 14... Rxe1 {[%clk 0:02:33]} 15. Qxe1
{[%clk 0:02:19.4]} 15... Nxd5 {[%clk 0:02:33.3]} 16. Nxd5 {[%clk 0:02:19.9]}
16... Qxd5 {[%clk 0:02:33.4]} 17. Rd1 {[%clk 0:02:20.1]} 17... Qg5 {[%clk
0:02:28.7]} 18. Qe8 {[%clk 0:02:06.1]} 18... Qe7 {[%clk 0:02:27.5]} 19. Re1
{[%clk 0:02:06.2]} 19... Qf6 {[%clk 0:02:18.9]} 20. c3 {[%clk 0:01:49.7]} 20...
h5 {[%clk 0:02:01.8]} 21. Nf3 {[%clk 0:01:35.8]} 21... h4 {[%clk 0:01:56.9]} 22.
Bh2 {[%clk 0:01:34.2]} 22... b6 {[%clk 0:01:54.7]} 23. Bd3 {[%clk 0:00:57.8]}
23... Bb7 {[%clk 0:01:27.5]} 24. Qd7 {[%clk 0:00:55.4]} 24... Bc8 {[%clk
0:01:27.6]} 25. Qd4 {[%clk 0:00:46.9]} 25... Qxd4 {[%clk 0:01:26.1]} 26. Nxd4
{[%clk 0:00:47.8]} 26... Bd7 {[%clk 0:01:26.2]} 27. Ba6 {[%clk 0:00:42.3]} 27...
c5 {[%clk 0:01:05]} 28. Bb7 {[%clk 0:00:42.8]} 28... Re8 {[%clk 0:00:49.6]} 29.
Rxe8 {[%clk 0:00:43]} 29... Bxe8 {[%clk 0:00:50.5]} 30. Nb5 {[%clk 0:00:43.9]}
30... c4 {[%clk 0:00:43.4]} 31. Bb8 {[%clk 0:00:37.6]} 31... a5 {[%clk
0:00:42.3]} 32. Bd5 {[%clk 0:00:37.5]} 32... Bxb5 {[%clk 0:00:41.5]} 33. axb5
{[%clk 0:00:37.4]} 33... Bc5 {[%clk 0:00:41.7]} 34. Bxc4 {[%clk 0:00:36]} 34...
Kf8 {[%clk 0:00:42.2]} 35. Kf1 {[%clk 0:00:31.8]} 35... Ke7 {[%clk 0:00:41.8]}
36. g3 {[%clk 0:00:32.2]} 36... hxg3 {[%clk 0:00:38.9]} 37. fxg3 {[%clk
0:00:33.1]} 37... Kf6 {[%clk 0:00:39.5]} 38. Kg2 {[%clk 0:00:30.4]} 38... Ne5
{[%clk 0:00:39.8]} 39. Be2 {[%clk 0:00:31.1]} 39... g5 {[%clk 0:00:31.9]} 40. h4
{[%clk 0:00:30.5]} 40... gxh4 {[%clk 0:00:31.8]} 41. gxh4 {[%clk 0:00:31.4]}
41... Be3 {[%clk 0:00:23.7]} 42. Bc7 {[%clk 0:00:28.7]} 42... a4 {[%clk
0:00:23.7]} 43. Kg3 {[%clk 0:00:22.6]} 43... Nd7 {[%clk 0:00:21]} 44. Bd1 {[%clk
0:00:17.6]} 44... Bc1 {[%clk 0:00:21]} 45. Bxa4 {[%clk 0:00:18.2]} 45... Bxb2
{[%clk 0:00:21.1]} 46. c4 {[%clk 0:00:17.5]} 46... Be5+ {[%clk 0:00:21.2]} 47.
Bxe5+ {[%clk 0:00:17.7]} 47... Kxe5 {[%clk 0:00:17.6]} 48. h5 {[%clk 0:00:14.3]}
48... Kf5 {[%clk 0:00:16.7]} 49. Bd1 {[%clk 0:00:10.7]} 49... Ne5 {[%clk
0:00:13.5]} 50. c5 {[%clk 0:00:09.6]} 50... bxc5 {[%clk 0:00:13.3]} 51. b6
{[%clk 0:00:10.4]} 51... Nc6 {[%clk 0:00:13.6]} 52. b7 {[%clk 0:00:10]} 52...
Kg5 {[%clk 0:00:13.3]} 53. Kf2 {[%clk 0:00:09.8]} 53... f5 {[%clk 0:00:12.1]}
54. Ke3 {[%clk 0:00:10]} 54... c4 {[%clk 0:00:06.1]} 55. Bf3 {[%clk 0:00:10.1]}
55... Nb8 {[%clk 0:00:03.9]} 56. Kd4 {[%clk 0:00:10.5]} 56... Kf4 {[%clk
0:00:04.4]} 57. Bd1 {[%clk 0:00:09.2]} 57... Kg5 {[%clk 0:00:04.6]} 58. Kxc4
{[%clk 0:00:09.5]} 58... Nc6 {[%clk 0:00:04]} 59. Kc5 {[%clk 0:00:09]} 59... Nb8
{[%clk 0:00:04.1]} 60. Kd6 {[%clk 0:00:09.5]} 60... f4 {[%clk 0:00:04.5]} 61.
Bf3 {[%clk 0:00:09.8]} 61... Na6 {[%clk 0:00:04.6]} 62. Be2 {[%clk 0:00:10]}
62... Nb8 {[%clk 0:00:03.7]} 63. Kc7 {[%clk 0:00:10.5]} 63... f3 {[%clk
0:00:03.9]} 64. Bxf3 {[%clk 0:00:11]} 64... Na6+ {[%clk 0:00:04.4]} 65. Kd6
{[%clk 0:00:11.7]} 65... Nb8 {[%clk 0:00:03]} 66. Be2 {[%clk 0:00:12.3]} 1-0

[Event "Early-Titled-Tuesday-Blitz-January-30-2024"]
[Site "Chess.com"]
[Date "2024.01.30"]
[Round "8"]
[White "LimeInTheCoconut"]
[Black "Boundless_Strike"]
[Result "1-0"]
[WhiteElo "2482"]
[BlackElo "2622"]
[TimeControl "180+1"]
[EndTime "9:31:19 PST"]
[Termination "LimeInTheCoconut won on time"]

1. e4 {[%clk 0:03:00.9]} 1... d6 {[%clk 0:03:00]} 2. d4 {[%clk 0:03:00.3]} 2...
e5 {[%clk 0:03:00.6]} 3. Nf3 {[%clk 0:02:53.1]} 3... Bg4 {[%clk 0:03:00.1]} 4.
dxe5 {[%clk 0:02:52.5]} 4... Nc6 {[%clk 0:03:00]} 5. Bb5 {[%clk 0:02:48]} 5...
Qd7 {[%clk 0:02:50.9]} 6. h3 {[%clk 0:02:42.7]} 6... Bh5 {[%clk 0:02:50.8]} 7.
exd6 {[%clk 0:02:25.2]} 7... Bxd6 {[%clk 0:02:49.4]} 8. e5 {[%clk 0:02:20.4]}
8... Bxf3 {[%clk 0:02:32.2]} 9. Qxf3 {[%clk 0:02:21.3]} 9... Bxe5 {[%clk
0:02:31.4]} 10. Bxc6 {[%clk 0:01:58.9]} 10... Qxc6 {[%clk 0:02:26.2]} 11. Qxc6+
{[%clk 0:01:57.8]} 11... bxc6 {[%clk 0:02:27.1]} 12. Nd2 {[%clk 0:01:55.5]}
12... Nf6 {[%clk 0:02:24.7]} 13. Nc4 {[%clk 0:01:54.2]} 13... Bd6 {[%clk
0:02:15.7]} 14. Be3 {[%clk 0:01:48.1]} 14... Nd5 {[%clk 0:02:12.2]} 15. O-O-O
{[%clk 0:01:40.1]} 15... Kd7 {[%clk 0:01:51.3]} 16. Bd2 {[%clk 0:01:38.1]} 16...
Rhe8 {[%clk 0:01:49.6]} 17. Rhe1 {[%clk 0:01:37.6]} 17... Rxe1 {[%clk
0:01:49.5]} 18. Rxe1 {[%clk 0:01:37.4]} 18... f6 {[%clk 0:01:39]} 19. g3 {[%clk
0:01:27.1]} 19... a6 {[%clk 0:01:36]} 20. h4 {[%clk 0:01:25.7]} 20... h5 {[%clk
0:01:33.7]} 21. Ne3 {[%clk 0:01:21.2]} 21... Nxe3 {[%clk 0:01:25.4]} 22. Rxe3
{[%clk 0:01:17.5]} 22... Rb8 {[%clk 0:01:24.7]} 23. b3 {[%clk 0:01:15.8]} 23...
Rb5 {[%clk 0:01:23.4]} 24. Re4 {[%clk 0:01:13.6]} 24... Rf5 {[%clk 0:01:21]} 25.
f4 {[%clk 0:01:09.1]} 25... Kc8 {[%clk 0:00:13]} 26. Re8+ {[%clk 0:01:08.2]}
26... Kb7 {[%clk 0:00:13.3]} 27. Rg8 {[%clk 0:01:08.9]} 27... Rd5 {[%clk
0:00:12.9]} 28. c4 {[%clk 0:01:00]} 28... Rd3 {[%clk 0:00:13.2]} 29. Rxg7 {[%clk
0:00:59.7]} 29... Rf3 {[%clk 0:00:13.9]} 30. g4 {[%clk 0:00:49.8]} 30... Rf1+
{[%clk 0:00:09.2]} 31. Kc2 {[%clk 0:00:49.5]} 31... Rf2 {[%clk 0:00:09.4]} 32.
Kd3 {[%clk 0:00:47.8]} 32... hxg4 {[%clk 0:00:09.9]} 33. Rxg4 {[%clk 0:00:47.2]}
33... Rh2 {[%clk 0:00:09.7]} 34. Rg6 {[%clk 0:00:43.4]} 34... f5 {[%clk
0:00:10.2]} 35. Rf6 {[%clk 0:00:40]} 35... Rh3+ {[%clk 0:00:10.3]} 36. Kc2
{[%clk 0:00:37.6]} 36... Rh2 {[%clk 0:00:10.9]} 37. Rxf5 {[%clk 0:00:36.9]}
37... Bb4 {[%clk 0:00:10.1]} 38. Kd3 {[%clk 0:00:23.1]} 38... Rxd2+ {[%clk
0:00:08.6]} 39. Ke4 {[%clk 0:00:23.6]} 39... Rxa2 {[%clk 0:00:07.8]} 40. Rg5
{[%clk 0:00:19]} 40... Rh2 {[%clk 0:00:05.7]} 41. h5 {[%clk 0:00:18]} 41... Kc8
{[%clk 0:00:06.1]} 42. Kf5 {[%clk 0:00:14.7]} 42... Kd7 {[%clk 0:00:06.5]} 43.
Rg7+ {[%clk 0:00:14.1]} 43... Kd6 {[%clk 0:00:06.2]} 44. Kg6 {[%clk 0:00:14.5]}
44... Bc3 {[%clk 0:00:05.8]} 45. Rg8 {[%clk 0:00:03.6]} 45... Rg2+ {[%clk
0:00:04]} 46. Kf7 {[%clk 0:00:03.5]} 46... Rh2 {[%clk 0:00:04]} 47. Kg6 {[%clk
0:00:02.7]} 47... Rg2+ {[%clk 0:00:04.4]} 48. Kf7 {[%clk 0:00:02.8]} 48... Rf2
{[%clk 0:00:05.2]} 49. Rg4 {[%clk 0:00:02.1]} 49... Rh2 {[%clk 0:00:05]} 50. Kg6
{[%clk 0:00:02.4]} 50... Ke7 {[%clk 0:00:05.5]} 51. h6 {[%clk 0:00:02.7]} 51...
Rh1 {[%clk 0:00:03.9]} 52. f5 {[%clk 0:00:03]} 52... c5 {[%clk 0:00:04.1]} 53.
Re4+ {[%clk 0:00:02.6]} 53... Kd7 {[%clk 0:00:04.3]} 54. f6 {[%clk 0:00:01.8]}
54... Rg1+ {[%clk 0:00:04.8]} 55. Kf7 {[%clk 0:00:02.5]} 55... Rf1 {[%clk
0:00:05.4]} 56. Re7+ {[%clk 0:00:02.9]} 1-0

[Event "Early-Titled-Tuesday-Blitz-January-30-2024"]
[Site "Chess.com"]
[Date "2024.01.30"]
[Round "8"]
[White "OparinGrigoriy"]
[Black "Imagine_Drag0n"]
[Result "1-0"]
[WhiteElo "3000"]
[BlackElo "2770"]
[TimeControl "180+1"]
[EndTime "9:31:20 PST"]
[Termination "OparinGrigoriy won on time"]

1. Nc3 {[%clk 0:03:00.9]} 1... e6 {[%clk 0:02:56.9]} 2. e4 {[%clk 0:03:00.2]}
2... d5 {[%clk 0:02:56.7]} 3. d4 {[%clk 0:03:00.6]} 3... Nf6 {[%clk 0:02:56.5]}
4. e5 {[%clk 0:02:59.8]} 4... Nfd7 {[%clk 0:02:56.5]} 5. Nce2 {[%clk 0:03:00.1]}
5... c5 {[%clk 0:02:55.8]} 6. c3 {[%clk 0:03:00.4]} 6... Nc6 {[%clk 0:02:55.8]}
7. f4 {[%clk 0:03:00.4]} 7... b5 {[%clk 0:02:54.4]} 8. Nf3 {[%clk 0:03:00.6]}
8... Be7 {[%clk 0:02:50.8]} 9. f5 {[%clk 0:02:56.8]} 9... exf5 {[%clk
0:02:42.2]} 10. Nf4 {[%clk 0:02:57]} 10... Nb6 {[%clk 0:02:42]} 11. Bxb5 {[%clk
0:02:56.7]} 11... Bb7 {[%clk 0:02:34.7]} 12. e6 {[%clk 0:02:49.9]} 12... O-O
{[%clk 0:02:24.2]} 13. exf7+ {[%clk 0:02:49.6]} 13... Rxf7 {[%clk 0:02:22.9]}
14. O-O {[%clk 0:02:38.7]} 14... Bd6 {[%clk 0:01:29.2]} 15. dxc5 {[%clk
0:02:28.3]} 15... Bxc5+ {[%clk 0:01:29.1]} 16. Kh1 {[%clk 0:02:28.7]} 16... Bf8
{[%clk 0:01:05.8]} 17. Ne6 {[%clk 0:02:16.9]} 17... Qd7 {[%clk 0:01:02.4]} 18.
Nfg5 {[%clk 0:02:03.1]} 18... Rf6 {[%clk 0:01:01.8]} 19. Nd4 {[%clk 0:01:46.3]}
19... Re8 {[%clk 0:00:57.5]} 20. Qh5 {[%clk 0:01:30.5]} 20... h6 {[%clk
0:00:49.1]} 21. Ngf3 {[%clk 0:01:24.9]} 21... Bd6 {[%clk 0:00:45.1]} 22. Bd2
{[%clk 0:01:12.5]} 22... Re4 {[%clk 0:00:44.7]} 23. Nxc6 {[%clk 0:01:04.4]}
23... Bxc6 {[%clk 0:00:43.6]} 24. Bxc6 {[%clk 0:01:05.3]} 24... Qxc6 {[%clk
0:00:43.6]} 25. Nd4 {[%clk 0:01:05.7]} 25... Qe8 {[%clk 0:00:26.9]} 26. Qxe8+
{[%clk 0:01:02]} 26... Rxe8 {[%clk 0:00:27.8]} 27. Rxf5 {[%clk 0:01:02.1]} 27...
Rxf5 {[%clk 0:00:20.4]} 28. Nxf5 {[%clk 0:01:03]} 28... Re2 {[%clk 0:00:18.4]}
29. Rd1 {[%clk 0:00:57.8]} 29... Nc4 {[%clk 0:00:17.5]} 30. Bc1 {[%clk
0:00:54.6]} 30... Be5 {[%clk 0:00:11.6]} 31. b3 {[%clk 0:00:38.5]} 31... Nb6
{[%clk 0:00:11]} 32. Be3 {[%clk 0:00:27.6]} 32... Rxa2 {[%clk 0:00:09.5]} 33.
Bxb6 {[%clk 0:00:24.9]} 33... axb6 {[%clk 0:00:09.1]} 34. Ne7+ {[%clk
0:00:25.4]} 34... Kh7 {[%clk 0:00:08.6]} 35. Nxd5 {[%clk 0:00:26.3]} 35... b5
{[%clk 0:00:06.9]} 36. g3 {[%clk 0:00:24.8]} 36... Rc2 {[%clk 0:00:06.8]} 37.
Rd3 {[%clk 0:00:23.5]} 37... Kg6 {[%clk 0:00:06.2]} 38. Rf3 {[%clk 0:00:19.4]}
38... Rb2 {[%clk 0:00:05.3]} 39. b4 {[%clk 0:00:19]} 39... Kg5 {[%clk 0:00:05]}
40. h3 {[%clk 0:00:19.3]} 40... h5 {[%clk 0:00:04.9]} 41. Kg1 {[%clk 0:00:15.5]}
41... h4 {[%clk 0:00:05.1]} 42. gxh4+ {[%clk 0:00:14.6]} 42... Kxh4 {[%clk
0:00:06]} 43. Ne7 {[%clk 0:00:07.1]} 43... Bf6 {[%clk 0:00:04.3]} 44. Nf5+
{[%clk 0:00:06.1]} 44... Kh5 {[%clk 0:00:03.5]} 45. Ng3+ {[%clk 0:00:06.6]}
45... Kh4 {[%clk 0:00:03.5]} 46. Ne4 {[%clk 0:00:07.2]} 46... Be5 {[%clk
0:00:03.6]} 47. Rf5 {[%clk 0:00:06]} 47... Bb8 {[%clk 0:00:02.8]} 48. Rxb5
{[%clk 0:00:06]} 48... Bc7 {[%clk 0:00:02.7]} 49. Rb7 {[%clk 0:00:05.9]} 49...
Be5 {[%clk 0:00:02.8]} 50. Re7 {[%clk 0:00:06.2]} 50... Bb8 {[%clk 0:00:02.5]}
51. Rxg7 {[%clk 0:00:06]} 51... Rc2 {[%clk 0:00:03]} 52. Rg4+ {[%clk 0:00:06.1]}
52... Kxh3 {[%clk 0:00:03.4]} 53. Rg8 {[%clk 0:00:05.7]} 53... Ba7+ {[%clk
0:00:03.3]} 54. Kf1 {[%clk 0:00:05.9]} 54... Rb2 {[%clk 0:00:03.8]} 55. Ke1
{[%clk 0:00:05.4]} 55... Kh4 {[%clk 0:00:03.8]} 56. Kd1 {[%clk 0:00:05.8]} 56...
Ra2 {[%clk 0:00:03.7]} 57. Nd2 {[%clk 0:00:06]} 57... Be3 {[%clk 0:00:03.6]} 58.
Nc4 {[%clk 0:00:06.2]} 58... Bg5 {[%clk 0:00:03.9]} 59. b5 {[%clk 0:00:05.9]}
59... Ra4 {[%clk 0:00:03.5]} 60. Nb2 {[%clk 0:00:05.5]} 60... Ra1+ {[%clk
0:00:02.5]} 61. Kc2 {[%clk 0:00:05.5]} 61... Rc1+ {[%clk 0:00:03]} 62. Kb3
{[%clk 0:00:06.1]} 62... Rb1 {[%clk 0:00:03.6]} 63. b6 {[%clk 0:00:04.7]} 63...
Bc1 {[%clk 0:00:03.9]} 64. Rg2 {[%clk 0:00:05.3]} 64... Bf4 {[%clk 0:00:03.9]}
65. b7 {[%clk 0:00:05.2]} 65... Rd1 {[%clk 0:00:04.3]} 66. Rf2 {[%clk
0:00:04.6]} 66... Be5 {[%clk 0:00:02.9]} 67. Rf5 {[%clk 0:00:04.8]} 67... Bg3
{[%clk 0:00:03]} 68. Rf3 {[%clk 0:00:04.7]} 68... Be5 {[%clk 0:00:03.1]} 69. Rf8
{[%clk 0:00:04.7]} 69... Rd7 {[%clk 0:00:02.9]} 70. b8=Q {[%clk 0:00:04.5]} 1-0

[Event "Early-Titled-Tuesday-Blitz-January-30-2024"]
[Site "Chess.com"]
[Date "2024.01.30"]
[Round "8"]
[White "GothamChess"]
[Black "FM_VS99"]
[Result "1-0"]
[WhiteElo "2745"]
[BlackElo "2559"]
[TimeControl "180+1"]
[EndTime "9:31:27 PST"]
[Termination "GothamChess won by resignation"]

1. e4 {[%clk 0:02:59.5]} 1... c5 {[%clk 0:02:58.2]} 2. a3 {[%clk 0:02:59]} 2...
g6 {[%clk 0:02:54.9]} 3. Nc3 {[%clk 0:02:56.4]} 3... Bg7 {[%clk 0:02:54.6]} 4.
Bc4 {[%clk 0:02:57.3]} 4... Nc6 {[%clk 0:02:54.3]} 5. d3 {[%clk 0:02:57.5]} 5...
e6 {[%clk 0:02:54.6]} 6. Ba2 {[%clk 0:02:54.7]} 6... Nge7 {[%clk 0:02:54.4]} 7.
h4 {[%clk 0:02:55.4]} 7... h5 {[%clk 0:02:46.1]} 8. Bg5 {[%clk 0:02:54.9]} 8...
f6 {[%clk 0:02:31.8]} 9. Bd2 {[%clk 0:02:54.5]} 9... d5 {[%clk 0:02:30.9]} 10.
Nge2 {[%clk 0:02:53.4]} 10... d4 {[%clk 0:02:27.9]} 11. Nb1 {[%clk 0:02:51.9]}
11... e5 {[%clk 0:02:24.5]} 12. Ng3 {[%clk 0:02:39.7]} 12... Bg4 {[%clk
0:02:17.8]} 13. f3 {[%clk 0:02:39.3]} 13... Bd7 {[%clk 0:02:18.5]} 14. b4 {[%clk
0:02:38.2]} 14... Qc8 {[%clk 0:02:13.1]} 15. b5 {[%clk 0:02:36.2]} 15... Nd8
{[%clk 0:02:12.9]} 16. a4 {[%clk 0:02:35.9]} 16... a6 {[%clk 0:02:04.4]} 17. Na3
{[%clk 0:02:08.6]} 17... Be6 {[%clk 0:01:53]} 18. Bxe6 {[%clk 0:01:47.8]} 18...
Qxe6 {[%clk 0:01:38.3]} 19. Nc4 {[%clk 0:01:36.3]} 19... O-O {[%clk 0:01:38]}
20. Qb1 {[%clk 0:01:25.1]} 20... Nc8 {[%clk 0:01:33.5]} 21. Qb3 {[%clk
0:01:23.2]} 21... axb5 {[%clk 0:01:25.2]} 22. Qxb5 {[%clk 0:01:20.1]} 22... Nd6
{[%clk 0:01:25.4]} 23. Nxd6 {[%clk 0:01:04.5]} 23... Qxd6 {[%clk 0:01:25.1]} 24.
Ke2 {[%clk 0:00:54.4]} 24... Ne6 {[%clk 0:01:15.3]} 25. Rhb1 {[%clk 0:00:49.6]}
25... Rf7 {[%clk 0:01:13.8]} 26. a5 {[%clk 0:00:49.1]} 26... Nf4+ {[%clk
0:01:09]} 27. Kf1 {[%clk 0:00:45.5]} 27... c4 {[%clk 0:00:46]} 28. Qxc4 {[%clk
0:00:38.8]} 28... Qd7 {[%clk 0:00:39.3]} 29. Bxf4 {[%clk 0:00:32.8]} 29... exf4
{[%clk 0:00:40.2]} 30. Ne2 {[%clk 0:00:33.3]} 30... f5 {[%clk 0:00:36]} 31. Ra2
{[%clk 0:00:25.7]} 31... fxe4 {[%clk 0:00:35.1]} 32. dxe4 {[%clk 0:00:24.5]}
32... Rc8 {[%clk 0:00:33.8]} 33. Qd5 {[%clk 0:00:16.5]} 33... Qxd5 {[%clk
0:00:18.3]} 34. exd5 {[%clk 0:00:17.4]} 34... Rc5 {[%clk 0:00:18.8]} 35. d6
{[%clk 0:00:14.9]} 35... Rd7 {[%clk 0:00:15.3]} 36. Rb6 {[%clk 0:00:13.9]} 36...
Be5 {[%clk 0:00:14.7]} 37. Ke1 {[%clk 0:00:07]} 37... Kf7 {[%clk 0:00:14.6]} 38.
Kd1 {[%clk 0:00:06.9]} 38... Rxd6 {[%clk 0:00:12.5]} 39. Rxb7+ {[%clk
0:00:06.9]} 39... Kf6 {[%clk 0:00:12.2]} 40. Nc1 {[%clk 0:00:06.9]} 40... Ra6
{[%clk 0:00:09.6]} 41. Nd3 {[%clk 0:00:06.4]} 41... Rcxa5 {[%clk 0:00:10.1]} 42.
Rab2 {[%clk 0:00:02.3]} 42... Bd6 {[%clk 0:00:08.8]} 43. R7b6 {[%clk 0:00:02.3]}
43... Kg7 {[%clk 0:00:04.4]} 44. Rb7+ {[%clk 0:00:02.5]} 44... Kf6 {[%clk
0:00:04.4]} 45. Nf2 {[%clk 0:00:02.7]} 45... Ke6 {[%clk 0:00:03.4]} 46. Ne4
{[%clk 0:00:02.9]} 46... Ra1+ {[%clk 0:00:03.7]} 47. Kd2 {[%clk 0:00:03.1]}
47... Be7 {[%clk 0:00:04.3]} 48. R2b6+ {[%clk 0:00:02.7]} 48... Rxb6 {[%clk
0:00:04.8]} 49. Rxb6+ {[%clk 0:00:03.6]} 49... Kd7 {[%clk 0:00:05.1]} 50. Rxg6
{[%clk 0:00:03.2]} 50... Bb4+ {[%clk 0:00:05.3]} 51. Kd3 {[%clk 0:00:03.6]}
51... Rd1+ {[%clk 0:00:05.5]} 52. Kc4 {[%clk 0:00:04.2]} 52... Be7 {[%clk
0:00:06.1]} 53. Kd5 {[%clk 0:00:04.4]} 53... Bxh4 {[%clk 0:00:06.1]} 54. Rg7+
{[%clk 0:00:04.2]} 54... Be7 {[%clk 0:00:03.7]} 55. Rh7 {[%clk 0:00:02.8]} 55...
Re1 {[%clk 0:00:03]} 56. Nc5+ {[%clk 0:00:02.5]} 56... Kc8 {[%clk 0:00:02.5]}
57. Nd3 {[%clk 0:00:03.4]} 57... Re2 {[%clk 0:00:02.2]} 58. Nxf4 {[%clk
0:00:03.9]} 58... Re1 {[%clk 0:00:01.5]} 59. Kxd4 {[%clk 0:00:03.4]} 59... Bd8
{[%clk 0:00:02]} 60. Nd3 {[%clk 0:00:02.4]} 60... Bc7 {[%clk 0:00:02.5]} 61.
Nxe1 {[%clk 0:00:02.4]} 61... Bd8 {[%clk 0:00:02.8]} 62. Kd3 {[%clk 0:00:02.8]}
62... Bb6 {[%clk 0:00:02.7]} 63. Rxh5 {[%clk 0:00:03.1]} 63... Bd8 {[%clk
0:00:03.6]} 64. Rh7 {[%clk 0:00:03.3]} 1-0